fUST/lending_fUST_20240524
["ID","MTS","AMOUNT","RATE_DAILY","PERIOD"]
[327800677,1716492634283,-500.0,0.00024657,2]
[327800679,1716492634292,-637.81,0.00024657,2]
[327800681,1716492634302,-257.78551054,0.00024657,2]
[327800683,1716492634312,-200.75478019,0.00024657,2]
[327800685,1716492634321,-500.0,0.00024657,2]
[327800687,1716492634332,-502.34,0.00024657,2]
[327800689,1716492634341,-500.0,0.00024657,2]
[327800691,1716492634350,-1955.17,0.00024657,2]
[327800693,1716492634361,-535.0,0.00024657,2]
[327800696,1716492634371,-500.33000912,0.00024657,2]
[327800698,1716492634381,-500.0,0.00024657,2]
[327800699,1716492634390,-500.0,0.00024657,2]
[327800702,1716492634400,-500.0,0.00024657,2]
[327800703,1716492634410,-500.0,0.00024657,2]
[327800705,1716492634419,-517.93,0.00024657,2]
[327800708,1716492634430,-502.95,0.00024657,2]
[327800710,1716492634440,-500.0,0.00024657,2]
[327800711,1716492634450,-500.0,0.00024657,2]
[327800713,1716492634459,-500.0,0.00024657,2]
[327800715,1716492634468,-500.0,0.00024657,2]
[327800717,1716492634478,-500.0,0.00024657,2]
[327800720,1716492634488,-500.0,0.00024657,2]
[327800722,1716492634498,-500.0,0.00024657,2]
[327800724,1716492634511,-500.0,0.00024657,2]
[327800726,1716492634520,-500.0,0.00024657,2]
[327800728,1716492634530,-500.0,0.00024657,2]
[327800729,1716492634540,-500.0,0.00024657,2]
[327800732,1716492634551,-500.0,0.00024657,2]
[327800733,1716492634560,-691.58,0.00024657,2]
[327800735,1716492634570,-583.63,0.00024657,2]
[327800738,1716492634582,-500.0,0.00024657,2]
[327800740,1716492634592,-500.0,0.00024657,2]
[327800742,1716492634601,-151.0,0.00024657,2]
[327800744,1716492634611,-151.0,0.00024657,2]
[327800746,1716492634621,-228.241111,0.00024657,2]
[327800748,1716492634630,-1409.83,0.00024657,2]
[327800749,1716492634639,-500.0,0.00024657,2]
[327800752,1716492634649,-500.0,0.00024657,2]
[327800754,1716492634659,-615.07,0.00024657,2]
[327800756,1716492634669,-727.54,0.00024657,2]
[327800758,1716492634679,-500.0,0.00024657,2]
[327800760,1716492634688,-534.15,0.00024657,2]
[327800761,1716492634697,-1150.02,0.00024657,2]
[327800763,1716492634707,-504.77174715,0.00024657,2]
[327800766,1716492634717,-585.23,0.00024657,2]
[327800767,1716492634727,-236.52988891,0.00024657,2]
[327800769,1716492634736,-1165.1,0.00024657,2]
[327800771,1716492634746,-500.0,0.00024657,2]
[327800774,1716492634755,-500.0,0.00024657,2]
[327800776,1716492634765,-1076.47,0.00024657,2]
[327800778,1716492634775,-955.9,0.00024657,2]
[327800780,1716492634785,-500.0,0.00024657,2]
[327800782,1716492634795,-500.0,0.00024657,2]
[327800784,1716492634805,-633.13755455,0.00024657,2]
[327800786,1716492634814,-536.21323141,0.00024657,2]
[327800788,1716492634824,-2534.46,0.00024657,2]
[327800790,1716492634833,-500.0,0.00024657,2]
[327800792,1716492634843,-500.0,0.00024657,2]
[327800794,1716492634853,-3442.16,0.00024657,2]
[327800796,1716492634862,-637.13,0.00024657,2]
[327800798,1716492634872,-500.0,0.00024657,2]
[327800799,1716492634881,-262.23685416,0.00024657,2]
[327800802,1716492634891,-1475.17,0.00024657,2]
[327800803,1716492634900,-500.0,0.00024657,2]
[327800805,1716492634911,-500.0,0.00024657,2]
[327800807,1716492634920,-500.0,0.00024657,2]
[327800809,1716492634929,-500.0,0.00024657,2]
[327800810,1716492634939,-535.15,0.00024657,2]
[327800811,1716492634949,-1771.57,0.00024657,2]
[327800812,1716492634959,-500.0,0.00024657,2]
[327800813,1716492634968,-617.26,0.00024657,2]
[327800814,1716492634978,-500.0,0.00024657,2]
[327800815,1716492634988,-538.94,0.00024657,2]
[327800816,1716492634998,-500.0,0.00024657,2]
[327800817,1716492635009,-500.0,0.00024657,2]
[327800818,1716492635018,-500.0,0.00024657,2]
[327800819,1716492635028,-2212.81,0.00024657,2]
[327800820,1716492635038,-500.0,0.00024657,2]
[327800821,1716492635048,-500.0,0.00024657,2]
[327800822,1716492635058,-837.13,0.00024657,2]
[327800823,1716492635068,-500.0,0.00024657,2]
[327800824,1716492635078,-500.0,0.00024657,2]
[327800825,1716492635089,-500.0,0.00024657,2]
[327800826,1716492635098,-500.0,0.00024657,2]
[327800827,1716492635108,-500.0,0.00024657,2]
[327800829,1716492635117,-500.0,0.00024657,2]
[327800831,1716492635126,-500.0,0.00024657,2]
[327800833,1716492635135,-576.99,0.00024657,2]
[327800835,1716492635145,-1509.26,0.00024657,2]
[327800837,1716492635155,-500.0,0.00024657,2]
[327800839,1716492635165,-500.0,0.00024657,2]
[327800841,1716492635174,-1420.1,0.00024657,2]
[327800843,1716492635184,-500.0,0.00024657,2]
[327800845,1716492635194,-500.0,0.00024657,2]
[327800847,1716492635204,-500.0,0.00024657,2]
[327800849,1716492635213,-500.0,0.00024657,2]
[327800851,1716492635223,-500.0,0.00024657,2]
[327800853,1716492635232,-500.0,0.00024657,2]
[327800855,1716492635242,-946.7,0.00024657,2]
[327800857,1716492635251,-1232.74,0.00024657,2]
[327800859,1716492635261,-500.0,0.00024657,2]
[327800861,1716492635271,-695.86,0.00024657,2]
[327800863,1716492635281,-2414.85,0.00024657,2]
[327800865,1716492635290,-500.0,0.00024657,2]
[327800867,1716492635300,-500.0,0.00024657,2]
[327800869,1716492635309,-500.0,0.00024657,2]
[327800871,1716492635319,-512.58380334,0.00024657,2]
[327800873,1716492635328,-2940.66,0.00024657,2]
[327800875,1716492635338,-500.0,0.00024657,2]
[327800877,1716492635347,-1449.1,0.00024657,2]
[327800879,1716492635357,-803.32,0.00024657,2]
[327800881,1716492635366,-500.0,0.00024657,2]
[327800883,1716492635376,-500.0,0.00024657,2]
[327800885,1716492635387,-791.49,0.00024657,2]
[327800887,1716492635396,-282.119892,0.00024657,2]
[327800889,1716492635405,-519.32,0.00024657,2]
[327800891,1716492635415,-519.19,0.00024657,2]
[327800893,1716492635424,-548.29,0.00024657,2]
[327800895,1716492635433,-3761.03,0.00024657,2]
[327800897,1716492635443,-1037.75,0.00024657,2]
[327800899,1716492635452,-500.0,0.00024657,2]
[327800901,1716492635462,-654.77,0.00024657,2]
[327800903,1716492635473,-1544.05,0.00024657,2]
[327800905,1716492635483,-1798.44,0.00024657,2]
[327800907,1716492635492,-500.0,0.00024657,2]
[327800909,1716492635505,-500.0,0.00024657,2]
[327800911,1716492635514,-500.0,0.00024657,2]
[327800913,1716492635524,-2942.64,0.00024657,2]
[327800915,1716492635534,-532.89,0.00024657,2]
[327800917,1716492635544,-500.0,0.00024657,2]
[327800919,1716492635554,-500.0,0.00024657,2]
[327800921,1716492635564,-519.18435871,0.00024657,2]
[327800923,1716492635574,-500.0,0.00024657,2]
[327800925,1716492635584,-2000.0,0.00024657,2]
[327800927,1716492635595,-2191.87,0.00024657,2]
[327800929,1716492635604,-500.0,0.00024657,2]
[327800931,1716492635614,-235.631067,0.00024657,2]
[327800933,1716492635623,-235.631067,0.00024657,2]
[327800935,1716492635633,-235.631067,0.00024657,2]
[327800936,1716492635643,-235.631067,0.00024657,2]
[327800938,1716492635653,-235.631067,0.00024657,2]
[327800941,1716492635662,-235.631067,0.00024657,2]
[327800943,1716492635672,-410.31392402,0.00024657,2]
[327800944,1716492635681,-235.631067,0.00024657,2]
[327800947,1716492635692,-235.631067,0.00024657,2]
[327800949,1716492635702,-22925.23,0.00024657,2]
[327800951,1716492635711,-235.631067,0.00024657,2]
[327800953,1716492635721,-235.631067,0.00024657,2]
[327800955,1716492635730,-235.631067,0.00024657,2]
[327800957,1716492635740,-235.631067,0.00024657,2]
[327800959,1716492635749,-524.06365007,0.00024657,2]
[327800961,1716492635758,-500.0,0.00024657,2]
[327800963,1716492635768,-151.0,0.00024657,2]
[327800965,1716492635777,-500.0,0.00024657,2]
[327800966,1716492635790,-3130.94,0.00024657,2]
[327800968,1716492635800,-1040.67,0.00024657,2]
[327800970,1716492635810,-500.0,0.00024657,2]
[327800972,1716492635819,-1254.86,0.00024657,2]
[327800974,1716492635829,-1109.55,0.00024657,2]
[327800976,1716492635839,-2641.09,0.00024657,2]
[327800978,1716492635849,-548.42,0.00024657,2]
[327800980,1716492635859,-747.03,0.00024657,2]
[327800982,1716492635869,-151.0,0.00024657,2]
[327800984,1716492635878,-151.0,0.00024657,2]
[327800986,1716492635887,-151.0,0.00024657,2]
[327800988,1716492635897,-500.0,0.00024657,2]
[327800990,1716492635907,-289.19402204,0.00024657,2]
[327800992,1716492635917,-500.0,0.00024657,2]
[327800994,1716492635926,-500.0,0.00024657,3]
[327800996,1716492635936,-500.0,0.00024657,4]
[327800998,1716492635946,-500.0,0.00024657,5]
[327801000,1716492635955,-500.0,0.00024657,6]
[327801002,1716492635965,-500.0,0.00024657,7]
[327801004,1716492635974,-500.0,0.00024657,8]
[327801006,1716492635984,-500.0,0.00024657,9]
[327801008,1716492635994,-2898.8,0.00024657,2]
[327801010,1716492636003,-500.0,0.00024657,10]
[327801012,1716492636013,-2443.21,0.00024657,2]
[327801014,1716492636022,-500.0,0.00024657,11]
[327801017,1716492636035,-981.11,0.00024657,2]
[327801019,1716492636045,-500.0,0.00024657,12]
[327801021,1716492636054,-500.0,0.00024657,13]
[327801023,1716492636063,-500.0,0.00024657,14]
[327801025,1716492636072,-500.0,0.00024657,2]
[327801026,1716492636081,-500.0,0.00024657,15]
[327801028,1716492636090,-500.0,0.00024657,2]
[327801031,1716492636100,-500.0,0.00024657,2]
[327801033,1716492636110,-500.0,0.00024657,2]
[327801035,1716492636119,-1444.52,0.00024657,2]
[327801037,1716492636128,-526.98,0.00024657,2]
[327801038,1716492636136,-500.0,0.00024657,2]
[327801041,1716492636146,-577.91965625,0.00024657,2]
[327801043,1716492636158,-500.0,0.00024657,2]
[327801045,1716492636167,-3143.75,0.00024657,2]
[327801047,1716492636178,-579.81,0.00024657,2]
[327801049,1716492636187,-151.0,0.00024657,2]
[327801051,1716492636196,-500.0,0.00024657,2]
[327801053,1716492636205,-191.342098,0.00024657,2]
[327801055,1716492636214,-1911.89,0.00024657,2]
[327801056,1716492636223,-500.0,0.00024657,2]
[327801058,1716492636232,-500.0,0.00024657,2]
[327801060,1716492636241,-500.0,0.00024657,2]
[327801062,1716492636251,-500.0,0.00024657,2]
[327801064,1716492636260,-20026.6,0.00024657,2]
[327801066,1716492636269,-2055.06,0.00024657,2]
[327801068,1716492636279,-1034.2,0.00024657,2]
[327801070,1716492636288,-500.0,0.00024657,2]
[327801072,1716492636298,-500.0,0.00024657,2]
[327801074,1716492636307,-500.0,0.00024657,2]
[327801076,1716492636317,-500.0,0.00024657,2]
[327801078,1716492636326,-500.0,0.00024657,2]
[327801080,1716492636335,-1036.01,0.00024657,2]
[327801082,1716492636345,-500.0,0.00024657,2]
[327801084,1716492636354,-5155.44,0.00024657,2]
[327801086,1716492636363,-500.0,0.00024657,2]
[327801088,1716492636373,-527.39,0.00024657,2]
[327801090,1716492636384,-6142.32,0.00024657,2]
[327801092,1716492636393,-2311.81,0.00024657,2]
[327801094,1716492636402,-3128.79,0.00024657,2]
[327801096,1716492636411,-3128.79,0.00024657,3]
[327801098,1716492636421,-3128.79,0.00024657,4]
[327801100,1716492636430,-3128.79,0.00024657,5]
[327801102,1716492636440,-762.04,0.00024657,2]
[327801104,1716492636449,-3128.79,0.00024657,6]
[327801106,1716492636458,-3128.79,0.00024657,7]
[327801108,1716492636468,-3128.79,0.00024657,8]
[327801110,1716492636477,-3128.79,0.00024657,9]
[327801112,1716492636486,-3128.79,0.00024657,10]
[327801114,1716492636496,-500.0,0.00024657,2]
[327801116,1716492636510,-3128.79,0.00024657,11]
[327801118,1716492636519,-3128.79,0.00024657,12]
[327801120,1716492636528,-3128.79,0.00024657,13]
[327801122,1716492636537,-3128.79,0.00024657,14]
[327801124,1716492636547,-500.0,0.00024657,2]
[327801125,1716492636556,-3128.79,0.00024657,15]
[327801127,1716492636566,-3128.79,0.00024657,16]
[327801130,1716492636576,-3128.79,0.00024657,17]
[327801131,1716492636586,-500.0,0.00024657,2]
[327801133,1716492636595,-2337.34,0.00024657,2]
[327801135,1716492636605,-1494.66,0.00024657,2]
[327801137,1716492636616,-500.0,0.00024657,2]
[327801140,1716492636627,-697.25,0.00024657,2]
[327801141,1716492636636,-500.0,0.00024657,2]
[327801144,1716492636646,-500.0,0.00024657,2]
[327801145,1716492636655,-500.0,0.00024657,2]
[327801148,1716492636665,-498.789492,0.00024657,2]
[327801150,1716492636676,-544.53,0.00024657,2]
[327801152,1716492636686,-151.0,0.00024657,2]
[327801154,1716492636696,-151.0,0.00024657,2]
[327801169,1716492636815,-500.0,0.00024657,2]
[327801171,1716492636843,-151.0,0.00024657,2]
[327801173,1716492636852,-151.0,0.00024657,2]
[327801175,1716492636862,-151.0,0.00024657,2]
[327801177,1716492636872,-894.63,0.00024657,2]
[327801179,1716492636885,-500.0,0.00024657,2]
[327801181,1716492636895,-500.0,0.00024657,2]
[327801183,1716492636904,-500.0,0.00024657,2]
[327801185,1716492636914,-151.0,0.00024657,2]
[327801187,1716492636924,-500.0,0.00024657,2]
[327801189,1716492636934,-151.0,0.00024657,2]
[327801191,1716492636943,-151.0,0.00024657,2]
[327801193,1716492636953,-151.0,0.00024657,2]
[327801195,1716492636963,-151.0,0.00024657,2]
[327801197,1716492636973,-3750.03,0.00024657,2]
[327801199,1716492636982,-500.22,0.00024657,2]
[327801201,1716492636992,-151.0,0.00024657,2]
[327801203,1716492637002,-151.0,0.00024657,2]
[327801205,1716492637012,-1164.55,0.00024657,2]
[327801207,1716492637021,-769.23,0.00024657,2]
[327801209,1716492637031,-500.0,0.00024657,2]
[327801211,1716492637041,-348.84095029,0.00024657,2]
[327801213,1716492637050,-500.0,0.00024657,2]
[327801215,1716492637060,-500.0,0.00024657,2]
[327801217,1716492637069,-500.0,0.00024657,2]
[327801219,1716492637078,-1666.53,0.00024657,2]
[327801221,1716492637088,-555.38,0.00024657,2]
[327801223,1716492637097,-596.96,0.00024657,2]
[327801225,1716492637106,-545.59,0.00024657,2]
[327801227,1716492637115,-500.0,0.00024657,2]
[327801229,1716492637125,-500.0,0.00024657,2]
[327801231,1716492637137,-1498.92,0.00024657,2]
[327801233,1716492637146,-151.0,0.00024657,2]
[327801235,1716492637155,-151.0,0.00024657,2]
[327801236,1716492637164,-151.0,0.00024657,2]
[327801238,1716492637174,-152.1247,0.00024657,2]
[327801241,1716492637183,-1613.5,0.00024657,2]
[327801242,1716492637193,-500.0,0.00024657,2]
[327801245,1716492637204,-500.0,0.00024657,2]
[327801247,1716492637213,-500.0,0.00024657,2]
[327801249,1716492637223,-500.0,0.00024657,2]
[327801251,1716492637232,-500.0,0.00024657,2]
[327801253,1716492637242,-500.0,0.00024657,2]
[327801255,1716492637251,-963.66,0.00024657,2]
[327801256,1716492637260,-500.0,0.00024657,2]
[327801259,1716492637270,-2990.86,0.00024657,2]
[327801261,1716492637279,-151.0,0.00024657,2]
[327801263,1716492637288,-844.91,0.00024657,2]
[327801264,1716492637298,-151.0,0.00024657,2]
[327801266,1716492637307,-2200.1,0.00024657,2]
[327801269,1716492637317,-151.0,0.00024657,2]
[327801271,1716492637327,-151.0,0.00024657,2]
[327801273,1716492637337,-151.0,0.00024657,2]
[327801275,1716492637347,-151.0,0.00024657,2]
[327801277,1716492637357,-151.0,0.00024657,2]
[327801279,1716492637367,-151.0,0.00024657,2]
[327801281,1716492637379,-151.0,0.00024657,2]
[327801283,1716492637389,-500.0,0.00024657,2]
[327801285,1716492637399,-151.0,0.00024657,2]
[327801287,1716492637408,-151.0,0.00024657,2]
[327801289,1716492637418,-500.0,0.00024657,2]
[327801291,1716492637428,-151.0,0.00024657,2]
[327801293,1716492637437,-500.0,0.00024657,2]
[327801295,1716492637447,-151.0,0.00024657,2]
[327801297,1716492637456,-151.0,0.00024657,2]
[327801299,1716492637466,-151.0,0.00024657,2]
[327801301,1716492637475,-500.0,0.00024657,2]
[327801303,1716492637485,-151.0,0.00024657,2]
[327801305,1716492637495,-276.92613967,0.00024657,2]
[327801307,1716492637507,-500.0,0.00024657,2]
[327801309,1716492637517,-500.0,0.00024657,2]
[327801311,1716492637527,-500.0,0.00024657,2]
[327801313,1716492637539,-500.0,0.00024657,2]
[327801315,1716492637549,-500.0,0.00024657,2]
[327801317,1716492637559,-500.0,0.00024657,2]
[327801319,1716492637569,-500.0,0.00024657,2]
[327801321,1716492637580,-500.0,0.00024657,2]
[327801323,1716492637591,-500.0,0.00024657,2]
[327801325,1716492637601,-614.46,0.00024657,2]
[327801327,1716492637610,-500.0,0.00024657,2]
[327801329,1716492637620,-500.0,0.00024657,2]
[327801331,1716492637633,-500.0,0.00024657,2]
[327801333,1716492637642,-3942.6,0.00024657,2]
[327801335,1716492637652,-500.0,0.00024657,2]
[327801337,1716492637662,-674.07,0.00024657,2]
[327801339,1716492637671,-500.0,0.00024657,2]
[327801341,1716492637681,-1075.45,0.00024657,2]
[327801343,1716492637691,-500.0,0.00024657,2]
[327801345,1716492637700,-386.93605087,0.00024657,2]
[327801347,1716492637710,-500.0,0.00024657,2]
[327801349,1716492637720,-500.0,0.00024657,2]
[327801351,1716492637732,-676.19,0.00024657,2]
[327801353,1716492637742,-1359.71,0.00024657,2]
[327801355,1716492637752,-500.0,0.00024657,2]
[327801357,1716492637762,-732.61,0.00024657,2]
[327801359,1716492637771,-151.0,0.00024657,2]
[327801361,1716492637781,-151.0,0.00024657,2]
[327801363,1716492637791,-151.0,0.00024657,2]
[327801365,1716492637800,-151.0,0.00024657,2]
[327801367,1716492637810,-151.0,0.00024657,2]
[327801369,1716492637820,-151.0,0.00024657,2]
[327801371,1716492637830,-500.0,0.00024657,2]
[327801373,1716492637840,-151.0,0.00024657,2]
[327801375,1716492637849,-151.0,0.00024657,2]
[327801377,1716492637859,-151.0,0.00024657,2]
[327801379,1716492637868,-151.0,0.00024657,2]
[327801381,1716492637878,-3354.08,0.00024657,2]
[327801383,1716492637889,-622.83,0.00024657,2]
[327801385,1716492637899,-151.0,0.00024657,2]
[327801387,1716492637908,-500.0,0.00024657,2]
[327801389,1716492637918,-151.0,0.00024657,2]
[327801391,1716492637928,-151.0,0.00024657,2]
[327801393,1716492637938,-151.0,0.00024657,2]
[327801395,1716492637948,-247.795296,0.00024657,2]
[327801397,1716492637958,-10862.29,0.00024657,2]
[327801399,1716492637967,-500.0,0.00024657,2]
[327801401,1716492637978,-151.0,0.00024657,2]
[327801403,1716492637988,-151.0,0.00024657,2]
[327801405,1716492637998,-151.0,0.00024657,2]
[327801411,1716492638007,-278.696478,0.00024657,2]
[327801414,1716492638017,-500.0,0.00024657,2]
[327801418,1716492638027,-500.0,0.00024657,2]
[327801422,1716492638037,-7898.64,0.00024657,2]
[327801425,1716492638046,-500.0,0.00024657,2]
[327801428,1716492638056,-711.83,0.00024657,2]
[327801431,1716492638065,-6992.92,0.00024657,2]
[327801435,1716492638075,-500.0,0.00024657,2]
[327801439,1716492638084,-3163.02,0.00024657,2]
[327801443,1716492638094,-502.44,0.00024657,2]
[327801446,1716492638104,-500.0,0.00024657,2]
[327801448,1716492638114,-500.0,0.00024657,2]
[327801450,1716492638124,-217.452458,0.00024657,2]
[327801452,1716492638135,-500.0,0.00024657,2]
[327801454,1716492638145,-4161.69,0.00024657,2]
[327801456,1716492638155,-500.0,0.00024657,2]
[327801458,1716492638165,-500.0,0.00024657,2]
[327801460,1716492638174,-500.0,0.00024657,2]
[327801462,1716492638184,-457.44,0.00024657,2]
[327801464,1716492638194,-151.0,0.00024657,2]
[327801466,1716492638204,-151.0,0.00024657,2]
[327801468,1716492638214,-151.0,0.00024657,2]
[327801470,1716492638224,-151.0,0.00024657,2]
[327801472,1716492638234,-151.0,0.00024657,2]
[327801474,1716492638244,-151.0,0.00024657,2]
[327801476,1716492638253,-500.0,0.00024657,2]
[327801479,1716492638272,-520.36,0.00024657,2]
[327801481,1716492638287,-151.0,0.00024657,2]
[327801483,1716492638298,-255.882591,0.00024657,2]
[327801486,1716492638309,-500.0,0.00024657,2]
[327801488,1716492638319,-3491.04,0.00024657,2]
[327801490,1716492638330,-556.37,0.00024657,2]
[327801492,1716492638340,-500.0,0.00024657,2]
[327801494,1716492638350,-556.37,0.00024657,3]
[327801496,1716492638360,-500.0,0.00024657,2]
[327801498,1716492638371,-556.37,0.00024657,4]
[327801500,1716492638383,-556.37,0.00024657,5]
[327801503,1716492638394,-556.37,0.00024657,6]
[327801505,1716492638404,-556.37,0.00024657,7]
[327801507,1716492638415,-556.37,0.00024657,8]
[327801509,1716492638426,-556.37,0.00024657,9]
[327801511,1716492638436,-556.37,0.00024657,10]
[327801513,1716492638447,-556.37,0.00024657,11]
[327801515,1716492638458,-556.37,0.00024657,12]
[327801518,1716492638468,-576.39,0.00024657,2]
[327801521,1716492638479,-556.37,0.00024657,13]
[327801524,1716492638490,-556.37,0.00024657,14]
[327801527,1716492638503,-556.37,0.00024657,15]
[327801531,1716492638517,-556.37,0.00024657,16]
[327801535,1716492638528,-12605.02,0.00024657,2]
[327801538,1716492638538,-599.42,0.00024657,2]
[327801540,1716492638551,-675.46,0.00024657,2]
[327801544,1716492638562,-200.0,0.00024658,2]
[327801547,1716492638572,-380.0,0.00024658,2]
[327801549,1716492638583,-200.0,0.00024658,15]
[327801551,1716492638593,-151.0,0.00024832,5]
[327801553,1716492638603,-232.262,0.00024841,2]
[327801555,1716492638613,-298.218,0.00024841,2]
[327801557,1716492638624,-3128.79,0.00024929,18]
[327801559,1716492638639,-151.0,0.00024929,2]
[327801561,1716492638650,-556.37,0.00024929,17]
[327801564,1716492638660,-500.0,0.0002493,16]
[327801566,1716492638671,-500.0,0.0002493,17]
[327801568,1716492638682,-500.0,0.0002493,18]
[327801570,1716492638692,-500.0,0.0002493,19]
[327801572,1716492638704,-388.96975525,0.0002493,20]
[327801574,1716492638714,-3128.79,0.0002493,19]
[327801576,1716492638725,-3128.79,0.0002493,20]
[327801586,1716492638810,-3128.79,0.0002493,21]
[327801588,1716492638820,-3128.79,0.0002493,21]
[327801590,1716492638830,-3128.79,0.0002493,21]
[327801592,1716492638839,-3128.79,0.0002493,21]
[327801594,1716492638849,-3128.97283378,0.0002493,21]
[327801596,1716492638858,-151.0,0.0002493,2]
[327801598,1716492638868,-188.78334,0.0002493,2]
[327801600,1716492638878,-556.37,0.0002493,18]
[327801602,1716492638890,-556.37,0.0002493,19]
[327801604,1716492638900,-556.37,0.0002493,20]
[327801605,1716492638909,-556.37,0.0002493,21]
[327801608,1716492638919,-556.37,0.0002493,21]
[327801610,1716492638928,-556.37,0.0002493,21]
[327801611,1716492638938,-500.0,0.00024931,3]
[327801613,1716492638948,-500.0,0.00024931,3]
[327801615,1716492638957,-500.0,0.00024931,3]
[327801616,1716492638967,-500.0,0.00024931,3]
[327801618,1716492638976,-500.0,0.00024931,3]
[327801619,1716492638985,-500.0,0.00024931,3]
[327801620,1716492638995,-500.0,0.00024931,3]
[327801621,1716492639004,-500.0,0.00024931,3]
[327801624,1716492639014,-561.89,0.00024931,3]
[327801626,1716492639024,-500.0,0.00024931,3]
[327801627,1716492639034,-500.0,0.00024931,3]
[327801630,1716492639044,-637.81,0.00024931,3]
[327801632,1716492639055,-500.0,0.00024931,3]
[327801633,1716492639064,-502.34,0.00024931,3]
[327801635,1716492639074,-500.0,0.00024931,3]
[327801638,1716492639087,-1955.17,0.00024931,3]
[327801640,1716492639098,-535.0,0.00024931,3]
[327801642,1716492639108,-500.0,0.00024931,3]
[327801644,1716492639119,-500.0,0.00024931,3]
[327801646,1716492639131,-517.93,0.00024931,3]
[327801648,1716492639142,-502.95,0.00024931,3]
[327801650,1716492639153,-500.0,0.00024931,3]
[327801652,1716492639163,-500.0,0.00024931,3]
[327801654,1716492639173,-500.0,0.00024931,3]
[327801655,1716492639183,-500.0,0.00024931,3]
[327801656,1716492639193,-500.0,0.00024931,3]
[327801657,1716492639202,-500.0,0.00024931,3]
[327801658,1716492639212,-500.0,0.00024931,3]
[327801659,1716492639222,-500.0,0.00024931,3]
[327801660,1716492639232,-500.0,0.00024931,3]
[327801661,1716492639241,-500.0,0.00024931,3]
[327801662,1716492639251,-500.0,0.00024931,3]
[327801663,1716492639260,-691.58,0.00024931,3]
[327801664,1716492639270,-583.63,0.00024931,3]
[327801665,1716492639280,-500.0,0.00024931,3]
[327801666,1716492639289,-1409.83,0.00024931,3]
[327801667,1716492639298,-500.0,0.00024931,3]
[327801668,1716492639308,-500.0,0.00024931,3]
[327801669,1716492639318,-615.07,0.00024931,3]
[327801670,1716492639327,-727.54,0.00024931,3]
[327801671,1716492639337,-351.92170241,0.00024931,3]
[327801672,1716492639347,-534.15,0.00024931,3]
[327801673,1716492639356,-1150.02,0.00024931,3]
[327801675,1716492639366,-585.23,0.00024931,3]
[327801677,1716492639376,-1165.1,0.00024931,3]
[327801679,1716492639388,-500.0,0.00024931,3]
[327801681,1716492639398,-955.9,0.00024931,3]
[327801683,1716492639407,-500.0,0.00024931,3]
[327801685,1716492639417,-1076.47,0.00024931,3]
[327801687,1716492639427,-500.0,0.00024931,3]
[327801689,1716492639436,-2534.46,0.00024931,3]